bitfinex/quotes_BTCUSD_20241128
["timestamp","ask_amount","ask_price","bid_price","bid_amount"]
[1732789884341,0.000862,95144.0,95137.0,0.115111]
[1732789884581,0.000862,95144.0,95138.0,0.14986479]
[1732789884791,0.000862,95144.0,95139.0,0.04515956]
[1732789885004,0.000862,95144.0,95140.0,0.17298776]
[1732789885261,0.000862,95144.0,95141.0,0.04515956]
[1732789885493,0.15336129,95150.0,95142.0,0.1417526]
[1732789885705,0.211025,95165.0,95143.0,0.04515956]
[1732789885706,0.17425726,95151.0,95143.0,0.04515956]
[1732789885996,0.15336129,95151.0,95144.0,0.1680714]
[1732789886226,0.15336129,95151.0,95145.0,0.00783858]
[1732789886456,0.15336129,95151.0,95144.0,0.16834503]
[1732789886457,0.15336129,95151.0,95146.0,0.12577079]
[1732789886673,0.15336129,95151.0,95147.0,0.02106552]
[1732789886884,0.15336129,95151.0,95148.0,0.14227648]
[1732789887091,0.15336129,95151.0,95149.0,0.02106552]
[1732789887313,0.15336129,95151.0,95150.0,0.10284521]
[1732789887528,0.02080341,95160.0,95150.0,0.10284521]
[1732789887529,0.15336129,95159.0,95150.0,0.12391073]
[1732789887740,0.15336129,95159.0,95151.0,0.02292551]
[1732789887952,0.15336129,95159.0,95152.0,0.1403351]
[1732789888181,0.15336129,95159.0,95153.0,0.02292545]
[1732789888437,0.15336129,95159.0,95154.0,0.12391073]
[1732789888685,0.0151805,95161.0,95154.0,0.12391073]
[1732789888686,0.0151805,95161.0,95155.0,0.12975985]
[1732789888888,0.0151805,95161.0,95156.0,0.4275183]
[1732789889071,0.0151805,95161.0,95157.0,0.00185966]
[1732789889348,0.0151805,95161.0,95158.0,0.12391073]
[1732789889572,0.0151805,95161.0,95159.0,0.03071887]
[1732789889835,0.0151805,95161.0,95160.0,0.14465851]
[1732789890052,0.0151805,95161.0,95160.0,0.46482916]
[1732789890984,0.000862,95165.0,95164.0,0.255081]
[1732789891190,0.000862,95165.0,95164.0,0.37897047]
[1732789891436,0.000862,95165.0,95164.0,0.38678534]
[1732789891654,0.000862,95165.0,95164.0,0.47932127]
[1732789892361,0.000862,95165.0,95164.0,0.48932127]
[1732789893082,0.000862,95165.0,95164.0,0.49728711]
[1732789893335,0.000862,95165.0,95164.0,0.50128711]
[1732789893542,0.000862,95165.0,95164.0,0.49328711]
[1732789893750,0.000862,95165.0,95164.0,0.50228711]
[1732789893980,0.000862,95165.0,95164.0,0.49828711]
[1732789894221,0.000862,95165.0,95164.0,0.50428711]
[1732789894454,0.000862,95165.0,95164.0,0.62728711]
[1732789895346,0.000862,95165.0,95164.0,0.38920611]
[1732789895554,0.15336129,95180.0,95165.0,0.15]
[1732789895772,0.15336129,95180.0,95164.0,0.14667018]
[1732789895773,0.15336129,95180.0,95166.0,0.12385531]
[1732789895991,0.105071,95173.0,95167.0,0.0210101]
[1732789896217,0.105071,95173.0,95168.0,0.12385531]
[1732789896431,0.105071,95173.0,95169.0,0.01388553]
[1732789896677,0.105074,95171.0,95170.0,0.12384088]
[1732789896907,0.105074,95171.0,95170.0,0.02099567]
[1732789896908,0.183574,95171.0,95170.0,0.02099567]
[1732789897372,0.183574,95171.0,95170.0,0.00807495]
[1732789897583,0.183574,95171.0,95170.0,0.02099805]
[1732789897799,0.183574,95171.0,95170.0,0.00807495]
[1732789898013,0.2507042,95171.0,95170.0,0.00807495]
[1732789898252,0.183574,95171.0,95170.0,0.00807495]
[1732789898472,0.35889901,95171.0,95170.0,0.00807495]
[1732789898722,0.105079,95166.0,95165.0,0.002]
[1732789898926,0.10740402,95166.0,95165.0,0.01007719]
[1732789899196,0.105079,95166.0,95165.0,0.01007719]
[1732789899412,0.105079,95166.0,95165.0,0.02100463]
[1732789899617,0.210152,95169.0,95165.0,0.02100649]
[1732789899847,0.0793607,95171.0,95166.0,0.02100649]
[1732789900094,0.0793607,95171.0,95154.0,0.01293104]
[1732789900095,0.0489,95161.0,95154.0,0.01293104]
[1732789900293,0.173,95159.0,95145.0,0.01293104]
[1732789900527,0.105103,95144.0,95143.0,0.01293104]
[1732789900750,0.105103,95144.0,95143.0,0.02101431]
[1732789902315,0.15336129,95153.0,95143.0,0.12385952]
[1732789902526,0.15336129,95153.0,95144.0,0.14425568]
[1732789902746,0.001,95159.0,95149.0,0.01293829]
[1732789902986,0.001,95159.0,95150.0,0.13865784]
[1732789902987,0.106087,95159.0,95150.0,0.13865784]
[1732789903201,0.105087,95159.0,95151.0,0.0339526]
[1732789903408,0.15336129,95160.0,95151.0,0.0339526]
[1732789903409,0.105089,95157.0,95156.0,0.01293829]
[1732789903621,0.105089,95157.0,95156.0,0.02101431]
[1732789903866,0.210161,95165.0,95156.0,0.1368132]
[1732789904093,0.105087,95159.0,95157.0,0.13925022]
[1732789904330,0.210165,95163.0,95158.0,0.02101431]
[1732789904540,0.210161,95165.0,95159.0,0.02101431]
[1732789904768,0.15336129,95166.0,95160.0,0.0362347]
[1732789904976,0.15336129,95166.0,95161.0,0.03396799]
[1732789905251,0.15336129,95166.0,95161.0,0.1368132]
[1732789905476,0.15336129,95166.0,95161.0,0.10284521]
[1732789905712,0.15336129,95166.0,95165.0,0.01295881]
[1732789905916,0.0008607,95171.0,95165.0,0.03401598]
[1732789906140,0.0008607,95171.0,95166.0,0.12389682]
[1732789906361,0.0008607,95171.0,95167.0,0.02105161]
[1732789906362,0.105077,95168.0,95167.0,0.02105161]
[1732789906582,0.0008607,95171.0,95167.0,0.12391329]
[1732789906806,0.105077,95168.0,95167.0,0.01296895]
[1732789907060,0.0008607,95171.0,95167.0,0.1368838]
[1732789907260,0.105075,95170.0,95168.0,0.1397629]
[1732789907496,0.0008607,95171.0,95169.0,0.03403859]
[1732789907712,0.0008607,95171.0,95170.0,0.13174467]
[1732789908877,0.0008607,95171.0,95170.0,0.13360421]
[1732789909050,0.0008607,95171.0,95170.0,0.13174467]
[1732789909292,0.0008607,95171.0,95170.0,0.14661798]
[1732789909467,0.1059347,95171.0,95170.0,0.02889946]
[1732789909725,0.1059347,95171.0,95170.0,0.02506964]
[1732789910357,0.1059347,95171.0,95170.0,0.03006964]
[1732789910621,0.1059347,95171.0,95170.0,0.02406964]
[1732789911026,0.1059347,95171.0,95170.0,0.02606964]
[1732789911525,0.1059347,95171.0,95170.0,0.03905945]
[1732789911760,0.1059347,95171.0,95170.0,0.02606964]
[1732789911991,0.1059347,95171.0,95170.0,0.02306964]
[1732789913798,0.1059347,95171.0,95170.0,0.00810318]
[1732789916157,0.0008607,95171.0,95170.0,0.00810318]
[1732789916389,0.1059347,95171.0,95170.0,0.00810318]
[1732789917360,0.18435946,95171.0,95170.0,0.00810318]
[1732789918931,0.10825946,95171.0,95170.0,0.00810318]
[1732789919207,0.1059347,95171.0,95170.0,0.00810318]
[1732789920631,0.10825955,95171.0,95170.0,0.00810318]
[1732789921373,0.105083,95162.0,95161.0,0.0017214]
[1732789921608,0.10740814,95162.0,95161.0,0.00984807]
[1732789921860,0.10740814,95162.0,95161.0,0.0017214]
[1732789922308,0.105083,95162.0,95161.0,0.0017214]
[1732789922524,0.105083,95162.0,95161.0,0.00984955]
[1732789924142,0.105083,95162.0,95161.0,0.0017214]
[1732789924639,0.105083,95162.0,95161.0,0.0098537]
[1732789924815,0.105083,95162.0,95161.0,0.0017214]
[1732789925335,0.210165,95164.0,95161.0,0.0017214]
[1732789925336,0.105082,95164.0,95161.0,0.0017214]
[1732789925552,0.0008607,95165.0,95161.0,0.0017214]
[1732789925786,0.210163,95164.0,95161.0,0.0017214]
[1732789926027,0.105083,95162.0,95161.0,0.0017214]
[1732789926524,0.15770907,95162.0,95161.0,0.0037214]
[1732789926726,0.105083,95162.0,95161.0,0.0037214]
[1732789926999,0.102083,95162.0,95161.0,0.0037214]
[1732789928645,0.231483,95162.0,95161.0,0.0017214]
[1732789929341,0.231483,95162.0,95161.0,0.0027214]
[1732789929568,0.29674907,95162.0,95161.0,0.0027214]
[1732789929830,0.29674907,95162.0,95161.0,0.0017214]
[1732789931464,0.2529597,95162.0,95161.0,0.0017214]
[1732789931687,0.2030597,95162.0,95161.0,0.0017214]
[1732789931955,0.20538503,95162.0,95161.0,0.0017214]
[1732789936160,0.12588503,95162.0,95161.0,0.0017214]
[1732789936631,0.0214767,95162.0,95161.0,0.0017214]
[1732789936857,0.0008607,95165.0,95161.0,0.0017214]
[1732789937081,0.105083,95162.0,95161.0,0.0017214]
[1732789937587,0.210163,95164.0,95161.0,0.0017214]
[1732789937805,0.105083,95162.0,95161.0,0.0017214]
[1732789938025,0.0008607,95165.0,95161.0,0.0017214]
[1732789938277,0.105083,95162.0,95161.0,0.0017214]
[1732789938519,0.12563261,95164.0,95161.0,0.0017214]
[1732789938746,0.02055061,95164.0,95161.0,0.0017214]
[1732789939454,0.0008607,95165.0,95162.0,0.10284521]
[1732789942946,0.0008607,95165.0,95164.0,0.09427596]
[1732789944089,0.0008607,95165.0,95164.0,0.29395915]
[1732789944327,0.0008607,95165.0,95164.0,0.15254521]
[1732789944577,0.0008607,95165.0,95164.0,0.59357442]
[1732789944816,0.0008607,95165.0,95164.0,0.59457442]
[1732789945265,0.0008607,95165.0,95164.0,0.59355224]
[1732789945510,0.0008607,95165.0,95164.0,0.59455224]
[1732789945718,0.0008607,95165.0,95164.0,0.59755224]
[1732789945953,0.0008607,95165.0,95164.0,0.78625139]
[1732789946173,0.0008607,95165.0,95164.0,0.38776001]
[1732789946412,0.0008607,95165.0,95164.0,0.39276001]
[1732789946632,0.0008607,95165.0,95164.0,0.74106315]
[1732789946854,0.0008607,95165.0,95164.0,0.73606315]
[1732789947074,0.0008607,95165.0,95164.0,0.74106315]
[1732789947299,0.0008607,95165.0,95164.0,0.38876001]
[1732789947525,0.0008607,95165.0,95164.0,0.59552256]
[1732789947790,0.0008607,95165.0,95164.0,0.59952256]
[1732789948228,0.0008607,95165.0,95164.0,0.60252256]
[1732789948672,0.0008607,95165.0,95164.0,0.59952256]
[1732789948929,0.0008607,95165.0,95164.0,0.59652256]
[1732789949176,0.0008607,95165.0,95164.0,0.60352256]
[1732789953746,0.0008607,95165.0,95164.0,0.83362256]
[1732789953956,0.0008607,95171.0,95168.0,0.15]
[1732789954179,0.0008607,95171.0,95169.0,0.55135913]
[1732789954405,0.0008607,95171.0,95170.0,0.34829211]
[1732789954626,0.0008607,95171.0,95170.0,0.45113732]
[1732789955514,0.0008607,95171.0,95170.0,0.78411232]
[1732789955760,0.0008607,95171.0,95170.0,0.83351232]
[1732789956002,0.0008607,95171.0,95170.0,0.91254966]
[1732789956727,0.0008607,95171.0,95170.0,0.80747466]
[1732789956971,0.0008607,95171.0,95170.0,0.81147466]
[1732789957197,0.0008607,95171.0,95170.0,0.80747466]
[1732789957719,0.0008607,95171.0,95170.0,0.81247466]
[1732789957956,0.0008607,95171.0,95170.0,0.82147466]
[1732789958173,0.0008607,95171.0,95170.0,1.04815305]
[1732789958634,0.0008607,95171.0,95170.0,0.89815305]
[1732789958871,0.1059347,95171.0,95170.0,0.34829211]
[1732789959131,0.0008607,95171.0,95161.0,0.09598648]
[1732789959380,0.105083,95162.0,95161.0,0.0017214]
[1732789960599,0.10740797,95162.0,95161.0,0.0017214]
[1732789961332,0.10740797,95162.0,95161.0,0.0077214]
[1732789961812,0.10740797,95162.0,95161.0,0.0087214]
[1732789961813,0.105083,95162.0,95161.0,0.0087214]
[1732789962319,0.105083,95162.0,95161.0,0.0077214]
[1732789962541,0.10740817,95162.0,95161.0,0.0017214]
[1732789964655,0.18119679,95162.0,95161.0,0.0017214]
[1732789964888,0.105104,95144.0,95139.0,0.06956822]
[1732789965138,0.15336129,95150.0,95140.0,0.10284521]
[1732789965379,0.15336129,95150.0,95136.0,0.14139762]
[1732789965628,0.15336129,95150.0,95137.0,0.10284521]
[1732789965629,0.105106,95142.0,95137.0,0.10284521]
[1732789965854,0.210208,95144.0,95137.0,0.10284521]
[1732789966080,0.210174,95159.0,95137.0,0.10284521]
[1732789966316,0.15336129,95160.0,95138.0,0.21727263]
[1732789966534,0.210185,95154.0,95139.0,0.10284521]
[1732789966767,0.210187,95153.0,95139.0,0.10284521]
[1732789967026,0.02061408,95155.0,95139.0,0.24424283]
[1732789967257,0.02061408,95155.0,95139.0,0.10284521]
[1732789967258,0.105101,95147.0,95139.0,0.10284521]
[1732789967484,0.105101,95147.0,95140.0,0.08346251]
[1732789967719,0.15336129,95150.0,95141.0,0.10284521]
[1732789967947,0.15336129,95150.0,95140.0,0.10284521]
[1732789968202,0.210201,95147.0,95140.0,0.10284521]
[1732789968449,0.105107,95141.0,95140.0,0.10284521]
[1732789968695,0.210201,95147.0,95140.0,0.10284521]
[1732789968932,0.105107,95141.0,95140.0,0.10284521]
[1732789969680,0.105103,95144.0,95140.0,0.10784521]
[1732789969899,0.105106,95142.0,95140.0,0.10784521]
[1732789970382,0.210201,95147.0,95140.0,0.10784521]
[1732789970383,0.105107,95141.0,95140.0,0.10784521]
[1732789970880,0.105106,95142.0,95140.0,0.10884521]
[1732789971106,0.105107,95141.0,95140.0,0.10284521]
[1732789971325,0.105107,95141.0,95140.0,0.10784521]
[1732789971557,0.105107,95141.0,95140.0,0.10984521]
[1732789971795,0.105107,95141.0,95140.0,0.10484521]
[1732789972037,0.105107,95141.0,95140.0,0.10984521]
[1732789972260,0.105107,95141.0,95140.0,0.10784521]
[1732789972785,0.105107,95141.0,95140.0,0.005]
[1732789974170,0.0008609,95142.0,95140.0,0.002]
[1732789974411,0.0008609,95142.0,95140.0,0.006]
[1732789974412,0.315321,95141.0,95140.0,0.006]
[1732789974651,0.315321,95141.0,95140.0,0.004]
[1732789974885,0.315321,95141.0,95140.0,0.005]
[1732789975542,0.0008609,95142.0,95140.0,0.005]
[1732789976046,0.0008609,95142.0,95140.0,0.001]
[1732789976047,0.105107,95141.0,95140.0,0.001]
[1732789976770,0.105107,95141.0,95137.0,0.0017218]
[1732789976997,0.0008609,95142.0,95137.0,0.10456701]
[1732789977221,0.0008609,95142.0,95140.0,0.006]
[1732789977460,0.0008609,95142.0,95141.0,0.10284521]
[1732789978151,0.0008609,95142.0,95141.0,0.17794521]
[1732789979063,0.0008609,95142.0,95141.0,0.18594521]
[1732789979285,0.0008609,95142.0,95141.0,0.280182]
[1732789979519,0.0008609,95142.0,95141.0,0.60032008]
[1732789979775,0.0008609,95142.0,95141.0,0.45895459]
[1732789980022,0.0008609,95142.0,95141.0,0.46295459]
[1732789980495,0.0008609,95142.0,95141.0,0.45495459]
[1732789980731,0.0008609,95142.0,95141.0,0.79882587]
[1732789980972,0.0008609,95142.0,95141.0,0.91792853]
[1732789981220,0.0008609,95142.0,95141.0,0.80382153]
[1732789981442,0.0008609,95142.0,95141.0,0.80782153]
[1732789981919,0.0008609,95142.0,95141.0,0.80482153]
[1732789982175,0.0008609,95142.0,95141.0,0.81382153]
[1732789982643,0.0008609,95142.0,95141.0,1.00229547]
[1732789982890,0.0008609,95142.0,95141.0,0.81382153]
[1732789983129,0.0008609,95142.0,95141.0,1.00229547]
[1732789983366,0.0008609,95142.0,95141.0,0.81382153]
[1732789983595,0.0008609,95142.0,95141.0,1.00229547]
[1732789984353,0.105093,95153.0,95142.0,0.15]
[1732789984571,0.105095,95152.0,95147.0,0.09424425]
[1732789984821,0.105095,95152.0,95148.0,0.10284521]
[1732789985038,0.210181,95156.0,95149.0,0.10248113]
[1732789985264,0.105095,95152.0,95150.0,0.10284521]
[1732789985487,0.210181,95156.0,95150.0,0.10284521]
[1732789985748,0.210185,95154.0,95150.0,0.10284521]
[1732789985967,0.105096,95151.0,95150.0,0.10284521]
[1732789986191,0.105096,95151.0,95150.0,0.14693891]
[1732789986912,0.105096,95151.0,95150.0,0.10284521]
[1732789987127,0.105094,95153.0,95150.0,0.10284521]
[1732789987359,0.210185,95154.0,95150.0,0.10284521]
[1732789987360,0.105095,95152.0,95150.0,0.10284521]
[1732789987581,0.105096,95151.0,95150.0,0.10284521]
[1732789987802,0.105094,95153.0,95150.0,0.10684521]
[1732789988259,0.210176,95158.0,95150.0,0.10684521]
[1732789988260,0.210176,95158.0,95150.0,0.10284521]
[1732789988483,0.105093,95154.0,95150.0,0.10284521]
[1732789988716,0.105095,95152.0,95150.0,0.10784521]
[1732789988946,0.210178,95157.0,95150.0,0.10784521]
[1732789989166,0.105095,95152.0,95150.0,0.10784521]
[1732789989853,0.105094,95153.0,95150.0,0.10784521]
[1732789990092,0.105094,95153.0,95150.0,0.11084521]
[1732789990330,0.210183,95155.0,95150.0,0.11084521]
[1732789990568,0.105096,95151.0,95150.0,0.10584521]
[1732789990790,0.02087908,95159.0,95150.0,0.10784521]
[1732789991013,0.02087908,95159.0,95150.0,0.12851276]
[1732789991245,0.105093,95154.0,95150.0,0.12551276]
[1732789991462,0.105093,95154.0,95150.0,0.13051276]
[1732789991703,0.105093,95154.0,95150.0,0.12351276]
[1732789991964,0.10509,95156.0,95150.0,0.10484521]
[1732789992185,0.105091,95156.0,95150.0,0.10484521]
[1732789992437,0.02087908,95159.0,95150.0,0.10484521]
[1732789992658,0.105096,95151.0,95150.0,0.10484521]
[1732789993336,0.105096,95151.0,95150.0,0.10584521]
[1732789993817,0.105096,95151.0,95150.0,0.10984521]
[1732789994036,0.105096,95151.0,95150.0,0.10284521]
[1732789994251,0.105096,95151.0,95150.0,0.10584521]
[1732789994467,0.105096,95151.0,95150.0,0.11184521]
[1732789995867,0.105096,95151.0,95150.0,0.009]
[1732789996238,0.182296,95151.0,95150.0,0.009]
[1732789996475,0.35434121,95151.0,95150.0,0.009]
[1732789996751,0.24924521,95151.0,95139.0,0.0017218]
[1732789996993,0.105108,95140.0,95139.0,0.0017218]
[1732789997242,0.15998638,95140.0,95139.0,0.0017218]
[1732789997482,0.30638638,95140.0,95139.0,0.0017218]
[1732789997703,0.3040605,95140.0,95139.0,0.0017218]
[1732789998421,0.3040605,95140.0,95139.0,0.0027218]
[1732789998658,0.3040605,95140.0,95139.0,0.0017218]
[1732789999107,0.228508,95140.0,95139.0,0.0017218]
[1732789999402,0.105108,95140.0,95139.0,0.0017218]
[1732789999616,0.10743376,95140.0,95139.0,0.0017218]
[1732789999831,0.12874779,95140.0,95139.0,0.0017218]
[1732790004072,0.12642203,95140.0,95139.0,0.0017218]
[1732790004322,0.12874779,95140.0,95139.0,0.0017218]
[1732790004535,0.14029741,95140.0,95139.0,0.0017218]
[1732790004766,0.19521389,95140.0,95139.0,0.0017218]
[1732790005936,0.24021389,95140.0,95139.0,0.0017218]
[1732790006216,0.23788813,95140.0,95139.0,0.0017218]
[1732790007114,0.17142203,95140.0,95139.0,0.0017218]
[1732790007332,0.17374799,95140.0,95139.0,0.0017218]
[1732790016101,0.5278932,95140.0,95139.0,0.0017218]
[1732790016354,0.52556724,95140.0,95139.0,0.0017218]
[1732790020471,0.52556724,95140.0,95139.0,0.00065774]
[1732790020989,0.62329468,95140.0,95139.0,0.00065774]
[1732790022936,0.63329468,95140.0,95139.0,0.00065774]
[1732790024770,0.63529468,95140.0,95139.0,0.00065774]
[1732790025273,0.63329468,95140.0,95139.0,0.00065774]
[1732790025730,0.63529468,95140.0,95139.0,0.00065774]
[1732790028135,0.52756724,95140.0,95139.0,0.00065774]
[1732790028358,0.12842203,95140.0,95139.0,0.00065774]
[1732790028604,0.13074799,95140.0,95139.0,0.00065774]
[1732790029826,0.10511,95138.0,95137.0,1e-08]
[1732790030055,0.105131,95119.0,95118.0,0.0466]
[1732790030343,0.105141,95110.0,95109.0,0.0498222]
[1732790031047,0.105141,95110.0,95109.0,0.1264222]
[1732790031524,0.15336129,95128.0,95118.0,0.007]
[1732790031761,0.105131,95119.0,95118.0,0.007]
[1732790031981,0.00232612,95127.0,95118.0,0.007]
[1732790031982,0.00232612,95127.0,95118.0,0.077]
[1732790032224,0.12621109,95119.0,95118.0,0.077]
[1732790032456,0.02108009,95119.0,95118.0,0.077]
[1732790032910,0.12621109,95119.0,95118.0,0.081]
[1732790033128,0.12621109,95119.0,95118.0,0.078]
[1732790034290,0.12621109,95119.0,95118.0,0.077]
[1732790034512,0.12621109,95119.0,95118.0,0.087]
[1732790034981,0.2019083,95119.0,95118.0,0.087]
[1732790035216,0.12621109,95119.0,95118.0,0.087]
[1732790036383,0.02108009,95119.0,95118.0,0.087]
[1732790036619,0.21022,95138.0,95118.0,0.087]
[1732790036865,0.105131,95119.0,95118.0,0.087]
[1732790037348,0.105131,95119.0,95118.0,0.13812144]
[1732790037589,0.105131,95119.0,95118.0,0.2323913]
[1732790038122,0.105131,95119.0,95118.0,0.2293913]
[1732790038578,0.210239,95130.0,95118.0,0.2293913]
[1732790038579,0.002,95138.0,95118.0,0.23796665]
[1732790038801,0.00232585,95137.0,95120.0,0.09435373]
[1732790039025,0.105112,95136.0,95121.0,0.0494]
[1732790039250,0.105127,95123.0,95121.0,0.0494]
[1732790039488,0.210229,95134.0,95121.0,0.0494]
[1732790039489,0.105128,95122.0,95121.0,0.0494]
[1732790040184,0.10513,95120.0,95119.0,0.24425]
[1732790040416,0.10513,95120.0,95119.0,0.59268769]
[1732790040640,0.10513,95120.0,95119.0,0.64031527]
[1732790041570,0.10513,95120.0,95119.0,0.68753296]
[1732790042051,0.10513,95120.0,95119.0,0.69453296]
[1732790042509,0.10513,95120.0,95119.0,0.45844453]
[1732790042965,0.10513,95120.0,95119.0,0.48110187]
[1732790043228,0.10513,95120.0,95119.0,0.46144453]
[1732790043478,0.0008621,95140.0,95120.0,0.16]
[1732790043695,0.0008621,95140.0,95134.0,0.210229]
[1732790043930,0.0008621,95140.0,95130.0,0.15336129]
[1732790043931,0.0008621,95140.0,95139.0,0.332009]
[1732790044157,0.0008621,95140.0,95139.0,0.93364835]
[1732790044886,0.0008621,95140.0,95139.0,1.4219161]
[1732790045345,0.0038621,95140.0,95139.0,0.93364835]
[1732790045568,0.0008621,95140.0,95139.0,0.93364835]
[1732790046030,0.0008621,95140.0,95139.0,0.95387321]
[1732790046744,0.0008621,95140.0,95139.0,0.96087321]
[1732790047451,0.0008621,95140.0,95139.0,1.23457784]
[1732790047908,0.0008621,95140.0,95139.0,1.44914096]
[1732790048134,0.0008621,95140.0,95139.0,1.43089557]
[1732790048364,0.0008621,95140.0,95139.0,1.43889557]
[1732790048591,0.0008621,95140.0,95139.0,1.44789557]
[1732790049032,0.0008621,95140.0,95139.0,1.44889557]
[1732790049248,0.0008621,95140.0,95139.0,0.97093763]
[1732790049509,0.0008621,95140.0,95139.0,1.25339452]
[1732790050395,0.0008621,95140.0,95139.0,0.97093763]
[1732790052928,0.0008621,95140.0,95139.0,0.97031844]
[1732790053616,0.0008609,95151.0,95148.0,0.105099]
[1732790053862,0.0008609,95151.0,95149.0,0.22841062]
[1732790054510,0.0008609,95151.0,95149.0,0.13437621]
[1732790054754,0.0008609,95151.0,95149.0,0.23947321]
[1732790054971,0.0008609,95151.0,95150.0,0.105097]
[1732790055192,0.0008609,95151.0,95150.0,0.20794221]
[1732790055424,0.0008609,95151.0,95150.0,0.26077367]
[1732790055659,0.0008609,95151.0,95150.0,0.20567667]
[1732790056335,0.0008609,95151.0,95150.0,0.21167667]
[1732790057491,0.0008609,95151.0,95150.0,0.22331021]
[1732790057945,0.0008609,95151.0,95150.0,0.23231021]
[1732790058598,0.105084,95162.0,95150.0,0.23231021]
[1732790058817,0.210163,95165.0,95151.0,0.16700967]
[1732790059030,0.105082,95164.0,95151.0,0.16700967]
[1732790060121,0.00232497,95167.0,95151.0,0.16700967]
[1732790060336,0.10508,95166.0,95152.0,0.0779]
[1732790060561,0.10508,95166.0,95153.0,0.20545713]
[1732790060768,0.0008607,95171.0,95155.0,0.0455]
[1732790061002,0.0008607,95171.0,95156.0,0.10284521]
[1732790061231,0.0008607,95171.0,95159.0,0.105086]
[1732790061232,0.02162292,95171.0,95159.0,0.105086]
[1732790061470,0.02162292,95171.0,95160.0,0.19548532]
[1732790061934,0.02162292,95171.0,95161.0,0.105084]
[1732790062148,0.02162292,95171.0,95160.0,0.19548532]
[1732790062149,0.02162292,95171.0,95162.0,0.10284521]
[1732790064200,0.02162292,95171.0,95162.0,0.10384521]
[1732790064455,0.02162292,95171.0,95162.0,0.10584521]
[1732790064669,0.02162292,95171.0,95163.0,0.01066835]
[1732790064922,0.02162292,95171.0,95164.0,0.10284521]
[1732790065466,0.105082,95163.0,95162.0,0.003]
[1732790065688,0.105104,95143.0,95140.0,0.09403441]
[1732790065909,0.105081,95164.0,95163.0,0.001]
[1732790066132,0.14916207,95164.0,95163.0,0.001]
[1732790066999,0.14916207,95164.0,95163.0,0.003]
[1732790067232,0.14916207,95164.0,95163.0,0.002]
[1732790067441,0.105102,95146.0,95142.0,0.15]
[1732790067659,0.105102,95146.0,95143.0,0.10284521]
[1732790068086,0.105103,95144.0,95143.0,0.10284521]
[1732790068313,0.105103,95144.0,95134.0,0.24403441]
[1732790068594,0.105103,95144.0,95131.0,0.08811745]
[1732790068595,0.105112,95136.0,95135.0,0.10284521]
[1732790069098,0.00232554,95136.0,95121.0,0.093923]
[1732790069332,0.10513,95120.0,95116.0,0.093923]
[1732790069557,0.10513,95120.0,95114.0,0.093923]
[1732790069785,0.0779,95127.0,95109.0,0.18979103]
[1732790069786,0.023,95143.0,95109.0,0.01303986]
[1732790069998,0.10513,95120.0,95109.0,0.01303986]
[1732790070717,0.10513,95120.0,95109.0,0.10696286]
[1732790070948,0.10513,95120.0,95109.0,0.0017222]
[1732790071169,0.10513,95120.0,95109.0,0.0956452]
[1732790071639,0.10513,95120.0,95109.0,0.09570407]
[1732790071891,0.10513,95120.0,95119.0,0.0113022]
[1732790073310,0.10513,95120.0,95119.0,0.11414741]
[1732790073523,0.210258,95122.0,95119.0,0.11414741]
[1732790073524,0.105128,95122.0,95119.0,0.11414741]
[1732790073775,0.210245,95127.0,95120.0,0.10284521]
[1732790074000,0.105128,95122.0,95120.0,0.10284521]
[1732790074219,0.02057002,95130.0,95120.0,0.10284521]
[1732790074473,0.21024,95129.0,95120.0,0.10284521]
[1732790074703,0.105125,95125.0,95120.0,0.10284521]
[1732790074917,0.105126,95124.0,95120.0,0.12687365]
[1732790075139,0.210247,95126.0,95120.0,0.10584521]
[1732790075352,0.210245,95127.0,95120.0,0.10284521]
[1732790075593,0.105129,95121.0,95120.0,0.10284521]
[1732790075801,0.105129,95121.0,95120.0,0.10384521]
[1732790076059,0.105129,95121.0,95120.0,0.001]
[1732790076325,0.1366671,95121.0,95120.0,0.001]
[1732790076756,0.1366671,95121.0,95120.0,0.002]
[1732790076965,0.1366671,95121.0,95120.0,0.001]
[1732790077184,0.00232595,95123.0,95119.0,0.0023022]
[1732790077185,0.10513,95120.0,95119.0,0.0023022]
[1732790078552,0.23330155,95120.0,95119.0,0.0023022]
[1732790078779,0.24221917,95120.0,95119.0,0.0023022]
[1732790079268,0.23097521,95120.0,95119.0,0.0053022]
[1732790080504,0.23097521,95120.0,95119.0,0.0083022]
[1732790080761,0.31079976,95120.0,95119.0,0.0083022]
[1732790081249,0.44819976,95120.0,95119.0,0.0023022]
[1732790082897,0.43819976,95120.0,95119.0,0.0023022]
[1732790083351,0.35837521,95120.0,95119.0,0.0023022]
[1732790084101,0.23253,95120.0,95119.0,0.0023022]
[1732790084328,0.18683,95120.0,95119.0,0.0023022]
[1732790084548,0.1074564,95120.0,95119.0,0.0023022]
[1732790086783,0.10513,95120.0,95119.0,0.0023022]
[1732790087505,0.15792553,95120.0,95119.0,0.0023022]
[1732790087735,0.1602517,95120.0,95119.0,0.0023022]
[1732790089419,0.10745617,95120.0,95119.0,0.0023022]
[1732790099663,0.10513,95120.0,95119.0,0.0023022]
[1732790101299,0.10513,95120.0,95119.0,0.0033022]
[1732790103912,0.10513,95120.0,95119.0,0.0023022]
[1732790104357,0.10513,95120.0,95119.0,0.0053022]
[1732790104571,0.10513,95120.0,95119.0,0.0023022]
[1732790104787,0.10513,95120.0,95119.0,0.0033022]
[1732790105270,0.10513,95120.0,95119.0,0.0023022]
[1732790106645,0.10513,95120.0,95119.0,0.0033022]
[1732790106870,0.10513,95120.0,95119.0,0.0023022]
[1732790107113,0.10513,95120.0,95119.0,0.0043022]
[1732790107571,0.10513,95120.0,95119.0,0.0053022]
[1732790108248,0.15792553,95120.0,95119.0,0.0053022]
[1732790108507,0.16025171,95120.0,95119.0,0.0053022]
[1732790110108,0.16025171,95120.0,95119.0,0.0023022]
[1732790110592,0.16025171,95120.0,95119.0,0.0033022]
[1732790110881,0.36439692,95120.0,95119.0,0.0023022]
[1732790111043,0.36207074,95120.0,95119.0,0.0023022]
[1732790111246,0.37332614,95120.0,95119.0,0.0023022]
[1732790112674,0.105141,95110.0,95109.0,0.0017222]
[1732790112927,0.136682,95110.0,95109.0,0.0017222]
[1732790113166,0.13900854,95110.0,95109.0,0.0017222]
[1732790114354,0.13900854,95110.0,95109.0,0.0087222]
[1732790117178,0.10746754,95110.0,95109.0,0.0087222]
[1732790118318,0.12880519,95110.0,95109.0,0.0087222]
[1732790119804,0.12880519,95110.0,95109.0,0.10318224]
[1732790120020,0.12647865,95110.0,95109.0,0.10318224]
[1732790120484,0.12647865,95110.0,95109.0,0.0087222]
[1732790120695,0.105138,95113.0,95109.0,0.43389772]